Workbook

Sheet Sheet1
A1: 공과대학 최근 3년간 취업율및 진학율 현황(2019~2021)
A2: 구분 | B2: 취업률(%) | G2: 진학률(%)
A3: (입학정원(정원내)-졸업인원) | B3: 2021 | D3: 2020 | F3: 2019 | G3: 2021 | I3: 2020 | K3: 2019
B4: 비율 | C4: 증감 | D4: 비율 | E4: 증감 | F4: 비율 | G4: 비율 | H4: 증감 | I4: 비율 | J4: 증감 | K4: 비율
A5: 전체(2,184) | B5: 68.3 | C5: =B5-D5 -> -2.1 | D5: 70.4 | E5: =D5-F5 -> -1.2 | F5: 71.6 | G5: 12 | H5: =G5-I5 -> -1 | I5: 13 | J5: =I5-K5 -> 0.9 | K5: 12.1
A6: 공과대학(564-633) | B6: 70.2 | C6: =B6-D6 -> -0.7 | D6: 70.9 | E6: =D6-F6 -> -3 | F6: 73.9 | G6: 15.5 | H6: =G6-I6 -> 0 | I6: 15.5 | J6: =I6-K6 -> 2 | K6: 13.5
A7: 기계공학과(139-169) | B7: 62.9 | C7: =B7-D7 -> -12.25151515 | D7: 75.15151515 | E7: =D7-F7 -> -2.548484848 | F7: 77.7 | G7: 10.1 | H7: =G7-I7 -> -0.1 | I7: 10.2 | J7: =I7-K7 -> 1.7 | K7: 8.5
A8: 산업공학과(85-86) | B8: 78.1 | C8: =B8-D8 -> 1.755913978 | D8: 76.34408602 | E8: =D8-F8 -> -11.85591398 | F8: 88.2 | G8: 14 | H8: =G8-I8 -> 2.6 | I8: 11.4 | J8: =I8-K8 -> 1.8 | K8: 9.6
A9: 화학공학과(45-65) | B9: 70.4 | C9: 12.21818182 | D9: 58.18181818 | E9: -14.71818182 | F9: 72.9 | G9: 15.4 | H9: 1.4 | I9: 14 | J9: 0.4 | K9: 13.6
A10: 신소재공학과(38-40) | B10: 53.1 | C10: -17.86774194 | D10: 70.96774194 | E10: -11.13225806 | F10: 82.1 | G10: 20 | H10: -9.5 | I10: 29.5 | J10: 26.1 | K10: 3.4
A11: 응용화학생명공학과(71-76) | B11: 69.6 | C11: -2.531147541 | D11: 72.13114754 | E11: 7.531147541 | F11: 64.6 | G11: 35.5 | H11: 3.3 | I11: 32.2 | J11: 2.9 | K11: 29.3
A12: 환경안전공학과(37-42) | B12: 75 | C12: 18.58974359 | D12: 56.41025641 | E12: -0.08974358974 | F12: 56.5 | G12: 21.4 | H12: 6.2 | I12: 15.2 | J12: -8.1 | K12: 23.3
A13: 건설시스템공학과(37-31) | B13: 69.2 | C13: 4.2 | D13: 65 | E13: 0.5 | F13: 64.5 | G13: 12.9 | H13: 12.9 | I13: 0 | J13: -8.8 | K13: 8.8
A14: 교통시스템공학과(37-41) | B14: 70.6 | C14: -16.06666667 | D14: 86.66666667 | E14: 0.9666666667 | F14: 85.7 | G14: 17.1 | H14: -13.3 | I14: 30.4 | J14: 8.2 | K14: 22.2
A15: 건축학과(74-83) | B15: 82.7 | C15: 13.58235294 | D15: 69.11764706 | E15: 8.017647059 | F15: 61.1 | G15: 8.4 | H15: 1.7 | I15: 6.7 | J15: -2.1 | K15: 8.8
A16: * 2021년 : 2020년 2월과 2019년 8월 졸업생
A17: * 2020년 : 2019년 2월과 2018년 8월 졸업생
A18: * 2019년 : 2018년 2월과 2017년 8월 졸업생
